fUSD/lending_fUSD_20240615
["ID","MTS","AMOUNT","RATE_DAILY","PERIOD"]
[329520756,1718412713125,-158.16647742,0.00025256,2]
[329520757,1718412713137,-357.56206506,0.00025264,2]
[329520758,1718412713162,-153.99098937,0.00025281,2]
[329520759,1718412713181,-155.64077264,0.00025293,2]
[329520760,1718412713232,-997.7,0.00025305,2]
[329520761,1718412713243,-151.0,0.00025311,7]
[329520762,1718412713278,-357.56206506,0.00025316,2]
[329520763,1718412713317,-1325.88313213,0.00025322,2]
[329520764,1718412713335,-155.64077264,0.00025323,2]
[329520765,1718412713350,-169.83947953,0.00025333,2]
[329520766,1718412713365,-357.56206506,0.00025355,2]
[329520767,1718412713383,-169.83947955,0.00025361,2]
[329520768,1718412713396,-180.26768709,0.00025361,2]
[329520769,1718412713409,-357.56206506,0.00025385,2]
[329520770,1718412713431,-357.56206506,0.00025449,2]
[329520771,1718412713472,-151.21954677,0.00025457,2]
[329520772,1718412713486,-152.89017849,0.00025461,2]
[329520773,1718412713520,-500.0,0.00025477,3]
[329520774,1718412713530,-500.0,0.00025477,3]
[329520775,1718412713542,-500.0,0.00025477,3]
[329520776,1718412713554,-254.58,0.00025477,3]
[329520777,1718412713568,-500.0,0.00025477,3]
[329520778,1718412713586,-500.0,0.00025479,3]
[329520779,1718412713605,-1622.23,0.00025479,3]
[329520780,1718412713623,-500.0,0.00025479,3]
[329520781,1718412713635,-1512.33,0.00025479,3]
[329520782,1718412713648,-500.0,0.00025479,3]
[329520783,1718412713659,-500.0,0.00025479,3]
[329520784,1718412713675,-612.35,0.00025479,3]
[329520785,1718412713692,-1630.03,0.00025479,3]
[329520786,1718412713717,-500.0,0.00025479,3]
[329520787,1718412713734,-704.79,0.00025479,3]
[329520788,1718412713753,-500.0,0.00025479,3]
[329520789,1718412713773,-519.91,0.00025479,3]
[329520790,1718412713791,-562.19,0.00025479,3]
[329520791,1718412713851,-528.56,0.00025479,3]
[329520792,1718412713884,-500.0,0.00025479,3]
[329520793,1718412713913,-586.94,0.00025479,3]
[329520794,1718412713927,-500.0,0.00025479,3]
[329520795,1718412713939,-500.0,0.00025479,3]
[329520796,1718412713952,-1018.16,0.00025479,3]
[329520797,1718412713964,-500.0,0.00025479,3]
[329520798,1718412714009,-500.0,0.00025479,3]
[329520799,1718412714033,-589.32,0.00025479,3]
[329520800,1718412714044,-1610.28,0.00025479,3]
[329520801,1718412714066,-257.5585201,0.00025487,2]
[329520802,1718412714092,-152.89017849,0.00025488,2]
[329520803,1718412714105,-357.56206506,0.00025491,2]
[329520804,1718412714117,-153.80636169,0.0002553,2]
[329520805,1718412714137,-1001.21261,0.0002555,2]
[329520806,1718412714151,-150.0,0.0002555,2]
[329520807,1718412714202,-152.89017849,0.00025552,2]
[329520808,1718412714253,-631.381418,0.00025555,2]
[329520809,1718412714294,-279.839337,0.00025555,2]
[329520810,1718412714317,-420.920944,0.00025555,2]
[329520811,1718412714329,-151.21954677,0.00025603,2]
[329520812,1718412714341,-152.75262365,0.00025614,2]
[329520813,1718412714354,-152.75262365,0.00025653,2]
[329520814,1718412714388,-151.21954677,0.00025659,2]
[329520815,1718412714451,-152.75262365,0.00025671,2]
[329520816,1718412714462,-257.5585201,0.00025678,2]
[329520817,1718412714484,-2100.0,0.00025681,2]
[329520818,1718412714504,-474.87,0.000257,2]
[329520819,1718412714516,-868.0,0.000257,4]
[329520820,1718412714529,-3370.0,0.000257,4]
[329520821,1718412714542,-152.89017849,0.00025743,2]
[329520822,1718412714557,-500.0,0.00025751,3]
[329520823,1718412714569,-500.0,0.00025751,3]
[329520824,1718412714582,-500.0,0.00025751,3]
[329520825,1718412714603,-500.0,0.00025751,3]
[329520826,1718412714619,-500.0,0.00025753,3]
[329520827,1718412714645,-1622.23,0.00025753,3]
[329520828,1718412714662,-500.0,0.00025753,3]
[329520829,1718412714688,-1512.33,0.00025753,3]
[329520830,1718412714730,-500.0,0.00025753,3]
[329520831,1718412714742,-363.39,0.00025753,3]
[329520832,1718412714773,-612.35,0.00025753,3]
[329520833,1718412714815,-1630.03,0.00025753,3]
[329520834,1718412714830,-500.0,0.00025753,3]
[329520835,1718412714859,-704.79,0.00025753,3]
[329520836,1718412714873,-500.0,0.00025753,3]
[329520837,1718412714912,-519.91,0.00025753,3]
[329520838,1718412714936,-562.19,0.00025753,3]
[329520839,1718412714948,-528.56,0.00025753,3]
[329520840,1718412714963,-500.0,0.00025753,3]
[329520841,1718412714977,-586.94,0.00025753,3]
[329520842,1718412714994,-500.0,0.00025753,3]
[329520843,1718412715021,-500.0,0.00025753,3]
[329520844,1718412715066,-1018.16,0.00025753,3]
[329520845,1718412715089,-500.0,0.00025753,3]
[329520846,1718412715115,-500.0,0.00025753,3]
[329520847,1718412715130,-589.32,0.00025753,3]
[329520848,1718412715152,-1610.28,0.00025753,3]
[329520849,1718412715173,-150.0,0.00025769,2]
[329520850,1718412715188,-151.21954677,0.00025777,2]
[329520851,1718412715213,-166.66666666,0.0002578,2]
[329520852,1718412715238,-150.0,0.0002578,2]
[329520853,1718412715251,-257.5585201,0.00025788,2]
[329520854,1718412715268,-153.54318877,0.0002579,2]
[329520855,1718412715280,-153.69627146,0.00025799,2]
[329520856,1718412715294,-151.0,0.00025827,4]
[329520857,1718412715348,-166.66666666,0.00025845,2]
[329520858,1718412715360,-417.77,0.00025863,2]
[329520859,1718412715372,-16186.0,0.00025872,2]
[329520860,1718412715388,-631.381418,0.00025875,2]
[329520861,1718412715399,-420.920944,0.00025875,2]
[329520862,1718412715444,-309.12,0.0002589,2]
[329520863,1718412715473,-189.15,0.0002589,2]
[329520864,1718412715485,-153.25500121,0.0002594,2]
[329520865,1718412715508,-257.5585201,0.00025963,2]
[329520866,1718412715529,-153.54318877,0.00025991,2]
[329520867,1718412715544,-2000.0,0.00026,2]
[329520868,1718412715554,-500.0,0.00026025,3]
[329520869,1718412715566,-500.0,0.00026025,3]
[329520870,1718412715629,-500.0,0.00026025,3]
[329520871,1718412715657,-518.33,0.00026025,3]
[329520872,1718412715670,-500.0,0.00026027,3]
[329520873,1718412715682,-1622.23,0.00026027,3]
[329520874,1718412715702,-500.0,0.00026027,3]
[329520875,1718412715715,-1512.33,0.00026027,3]
[329520876,1718412715738,-500.0,0.00026027,3]
[329520877,1718412715751,-612.35,0.00026027,3]
[329520878,1718412715772,-1630.03,0.00026027,3]
[329520879,1718412715792,-500.0,0.00026027,3]
[329520880,1718412715805,-704.79,0.00026027,3]
[329520881,1718412715856,-500.0,0.00026027,3]
[329520882,1718412715886,-519.91,0.00026027,3]
[329520883,1718412715913,-562.19,0.00026027,3]
[329520884,1718412715924,-528.56,0.00026027,3]
[329520885,1718412715941,-500.0,0.00026027,3]
[329520886,1718412716016,-586.94,0.00026027,3]
[329520887,1718412716042,-500.0,0.00026027,3]
[329520888,1718412716053,-500.0,0.00026027,3]
[329520889,1718412716084,-1018.16,0.00026027,3]
[329520890,1718412716104,-500.0,0.00026027,3]
[329520891,1718412716115,-500.0,0.00026027,3]
[329520892,1718412716130,-589.32,0.00026027,3]
[329520893,1718412716147,-1610.28,0.00026027,3]
[329520894,1718412716191,-357.56206506,0.00026034,2]
[329520895,1718412716214,-230.57377979,0.00026079,2]
[329520896,1718412716254,-396.97,0.00026083,2]
[329520897,1718412716273,-153.54318877,0.00026083,2]
[329520898,1718412716283,-1325.88313213,0.00026085,2]
[329520899,1718412716318,-274.66,0.000261,2]
[329520900,1718412716330,-353.74,0.00026137,2]
[329520901,1718412716342,-150.0,0.00026137,2]
[329520902,1718412716372,-423.01,0.00026137,2]
[329520903,1718412716393,-526.85,0.00026137,2]
[329520904,1718412716413,-154.88,0.00026137,2]
[329520905,1718412716424,-177.14,0.00026137,2]
[329520906,1718412716437,-164.35,0.00026137,2]
[329520907,1718412716453,-304.72,0.00026137,2]
[329520908,1718412716466,-300.0,0.00026137,2]
[329520909,1718412716481,-150.75,0.00026137,2]
[329520910,1718412716499,-32821.17555182,0.0002614,2]
[329520911,1718412716511,-1217.0489683,0.00026151,2]
[329520912,1718412716525,-152.75262365,0.00026169,2]
[329520913,1718412716544,-230.57377979,0.00026181,2]
[329520914,1718412716563,-357.56206506,0.00026192,2]
[329520915,1718412716575,-631.381418,0.00026194,2]
[329520916,1718412716587,-420.920944,0.00026194,2]
[329520917,1718412716599,-1980.0,0.00026198,2]
[329520918,1718412716609,-151.0,0.00026198,2]
[329520919,1718412716621,-357.56206506,0.00026211,2]
[329520920,1718412716641,-152.06773047,0.00026248,2]
[329520921,1718412716652,-500.0,0.00026299,3]
[329520922,1718412716664,-500.0,0.00026299,3]
[329520923,1718412716681,-500.0,0.00026299,3]
[329520924,1718412716696,-1103.28,0.000263,2]
[329520925,1718412716713,-500.0,0.00026301,3]
[329520926,1718412716727,-1622.23,0.00026301,3]
[329520927,1718412716741,-500.0,0.00026301,3]
[329520928,1718412716758,-1512.33,0.00026301,3]
[329520929,1718412716775,-500.0,0.00026301,3]
[329520930,1718412716797,-612.35,0.00026301,3]
[329520931,1718412716810,-1630.03,0.00026301,3]
[329520932,1718412716822,-500.0,0.00026301,3]
[329520933,1718412716837,-704.79,0.00026301,3]
[329520934,1718412716865,-500.0,0.00026301,3]
[329520935,1718412716878,-519.91,0.00026301,3]
[329520936,1718412716896,-562.19,0.00026301,3]
[329520937,1718412716907,-528.56,0.00026301,3]
[329520938,1718412716918,-500.0,0.00026301,3]
[329520939,1718412716929,-586.94,0.00026301,3]
[329520940,1718412717096,-500.0,0.00026301,3]
[329520941,1718412717111,-500.0,0.00026301,3]
[329520942,1718412717125,-1018.16,0.00026301,3]
[329520943,1718412717136,-500.0,0.00026301,3]
[329520944,1718412717154,-500.0,0.00026301,3]
[329520945,1718412717168,-589.32,0.00026301,3]
[329520946,1718412717203,-883.71,0.00026301,3]
[329520947,1718412717219,-14235.52,0.00026301,2]
[329520948,1718412717246,-997.7,0.0002631,2]
[329520949,1718412717277,-257.5585201,0.00026334,2]
[329520950,1718412717291,-151.0,0.00026355,2]
[329520951,1718412717316,-526.85,0.00026362,2]
[329520952,1718412717334,-150.0,0.00026362,2]
[329520953,1718412717356,-150.0,0.00026362,2]
[329520954,1718412717377,-164.35,0.00026362,2]
[329520955,1718412717389,-423.01,0.00026362,2]
[329520956,1718412717400,-353.74,0.00026362,2]
[329520957,1718412717416,-526.85,0.00026362,2]
[329520958,1718412717433,-164.35,0.00026362,2]
[329520959,1718412717446,-150.0,0.00026362,2]
[329520960,1718412717477,-150.0,0.00026362,2]
[329520961,1718412717508,-353.74,0.00026362,2]
[329520962,1718412717532,-423.01,0.00026362,2]
[329520963,1718412717553,-526.85,0.00026362,2]
[329520964,1718412717567,-423.01,0.00026362,2]
[329520965,1718412717579,-150.0,0.00026362,2]
[329520966,1718412717616,-150.0,0.00026362,2]
[329520967,1718412717672,-164.35,0.00026362,2]
[329520968,1718412717704,-353.74,0.00026362,2]
[329520969,1718412717719,-353.74,0.00026362,2]
[329520970,1718412717753,-164.35,0.00026362,2]
[329520971,1718412717765,-423.01,0.00026362,2]
[329520972,1718412717776,-150.0,0.00026362,2]
[329520973,1718412717787,-421.27,0.00026362,2]
[329520974,1718412717798,-393.98,0.00026362,2]
[329520975,1718412717811,-355.83,0.00026362,2]
[329520976,1718412717823,-302.33,0.00026362,2]
[329520977,1718412717853,-160.34970471,0.00026389,2]
[329520978,1718412717883,-152.0,0.00026415,3]
[329520979,1718412717894,-153.80636169,0.00026426,2]
[329520980,1718412717905,-1325.88313213,0.0002643,2]
[329520981,1718412717918,-153.54318877,0.00026436,2]
[329520982,1718412717946,-357.56206506,0.00026442,2]
[329520983,1718412717958,-5983.08124322,0.00026445,2]
[329520984,1718412717971,-154.4352934,0.00026495,2]
[329520985,1718412717987,-631.381418,0.00026513,2]
[329520986,1718412718006,-420.920944,0.00026513,2]
[329520987,1718412718024,-230.57377979,0.00026515,2]
[329520988,1718412718038,-153.25500121,0.00026563,2]
[329520989,1718412718084,-326.08,0.00026573,3]
[329520990,1718412718114,-500.0,0.00026573,3]
[329520991,1718412718129,-242.9,0.00026573,3]
[329520992,1718412718146,-500.0,0.00026575,3]
[329520993,1718412718209,-1622.23,0.00026575,3]
[329520994,1718412718225,-500.0,0.00026575,3]
[329520995,1718412718285,-1512.33,0.00026575,3]
[329520996,1718412718312,-500.0,0.00026575,3]
[329520997,1718412718326,-612.35,0.00026575,3]
[329520998,1718412718371,-1630.03,0.00026575,3]
[329520999,1718412718382,-500.0,0.00026575,3]
[329521000,1718412718403,-704.79,0.00026575,3]
[329521001,1718412718428,-303.86289623,0.00026575,3]
[329521002,1718412718441,-519.91,0.00026575,3]
[329521003,1718412718452,-562.19,0.00026575,3]
[329521004,1718412718465,-528.56,0.00026575,3]
[329521005,1718412718479,-248.02937267,0.00026575,3]
[329521006,1718412718496,-586.94,0.00026575,3]
[329521007,1718412718509,-500.0,0.00026575,3]
[329521008,1718412718523,-500.0,0.00026575,3]
[329521009,1718412718536,-1018.16,0.00026575,3]
[329521010,1718412718565,-500.0,0.00026575,3]
[329521011,1718412718579,-488.29108437,0.00026575,3]
[329521012,1718412718589,-589.32,0.00026575,3]
[329521013,1718412718612,-155.15668265,0.00026579,2]
[329521014,1718412718623,-152.75262365,0.0002659,2]
[329521015,1718412718634,-150.0,0.00026623,2]
[329521016,1718412718649,-153.25500121,0.00026663,2]
[329521017,1718412718663,-152.75262365,0.00026681,2]
[329521018,1718412718682,-150.0,0.00026687,2]
[329521019,1718412718704,-230.57377979,0.00026688,2]
[329521020,1718412718716,-153.25500121,0.00026689,2]
[329521021,1718412718744,-161.29234652,0.00026693,2]
[329521022,1718412718758,-474.87,0.000267,2]
[329521023,1718412718769,-357.56206506,0.00026718,2]
[329521024,1718412718781,-153.80636169,0.00026741,2]
[329521025,1718412718812,-152.89017849,0.00026758,2]
[329521026,1718412718824,-257.5585201,0.00026764,2]
[329521027,1718412718837,-150.0,0.00026769,2]
[329521028,1718412718849,-151.21954677,0.00026794,2]
[329521029,1718412718868,-153.69627146,0.00026797,2]
[329521030,1718412718916,-153.83063428,0.00026803,2]
[329521031,1718412718937,-152.75262365,0.00026812,2]
[329521032,1718412718953,-230.57377979,0.00026814,2]
[329521033,1718412718995,-257.5585201,0.00026815,2]
[329521034,1718412719032,-409.99,0.00026822,2]
[329521035,1718412719064,-4941.11,0.00026824,2]
[329521036,1718412719082,-631.381418,0.00026833,2]
[329521037,1718412719095,-420.920944,0.00026833,2]
[329521038,1718412719108,-500.0,0.00026847,3]
[329521039,1718412719127,-500.0,0.00026849,3]
[329521040,1718412719144,-1622.23,0.00026849,3]
[329521041,1718412719162,-500.0,0.00026849,3]
[329521042,1718412719183,-1512.33,0.00026849,3]
[329521043,1718412719195,-500.0,0.00026849,3]
[329521044,1718412719212,-612.35,0.00026849,3]
[329521045,1718412719241,-1630.03,0.00026849,3]
[329521046,1718412719253,-500.0,0.00026849,3]
[329521047,1718412719283,-704.79,0.00026849,3]
[329521048,1718412719308,-519.91,0.00026849,3]
[329521049,1718412719333,-562.19,0.00026849,3]
[329521050,1718412719428,-528.56,0.00026849,3]
[329521051,1718412719444,-586.94,0.00026849,3]
[329521052,1718412719458,-500.0,0.00026849,3]
[329521053,1718412719469,-500.0,0.00026849,3]
[329521054,1718412719481,-1018.16,0.00026849,3]
[329521055,1718412719521,-500.0,0.00026849,3]
[329521056,1718412719545,-589.32,0.00026849,3]
[329521057,1718412719556,-1325.88313213,0.0002685,2]
[329521058,1718412719568,-230.57377979,0.00026858,2]
[329521059,1718412719588,-158.16647742,0.0002687,2]
[329521060,1718412719618,-180.26768709,0.00026877,2]
[329521061,1718412719647,-257.5585201,0.00026931,2]
[329521062,1718412719657,-150.0,0.00026934,2]
[329521063,1718412719667,-230.57377979,0.00026941,2]
[329521064,1718412719689,-1325.88313213,0.00026958,2]
[329521065,1718412719700,-230.57377979,0.00026972,2]
[329521066,1718412719718,-153.69627146,0.00026978,2]
[329521067,1718412719756,-1400.0,0.00027,2]
[329521068,1718412719770,-2000.0,0.00027,2]
[329521069,1718412719790,-150.0,0.00027,4]
[329521070,1718412719809,-247.26741753,0.00027,4]
[329521071,1718412719823,-281.64680633,0.00027,4]
[329521072,1718412719836,-3462.863124,0.0002701,2]
[329521073,1718412719861,-154.4352934,0.00027019,2]
[329521074,1718412719876,-166.66666666,0.00027034,2]
[329521075,1718412719894,-167.14290054,0.00027034,2]
[329521076,1718412719905,-152.89017849,0.00027063,2]
[329521077,1718412719923,-257.5585201,0.00027104,2]
[329521078,1718412719935,-500.0,0.00027121,3]
[329521079,1718412719970,-500.0,0.00027123,3]
[329521080,1718412719986,-1622.23,0.00027123,3]
[329521081,1718412720005,-500.0,0.00027123,3]
[329521082,1718412720041,-1512.33,0.00027123,3]
[329521083,1718412720053,-500.0,0.00027123,3]
[329521084,1718412720101,-612.35,0.00027123,3]
[329521085,1718412720128,-1630.03,0.00027123,3]
[329521086,1718412720177,-500.0,0.00027123,3]
[329521087,1718412720190,-704.79,0.00027123,3]
[329521088,1718412720202,-519.91,0.00027123,3]
[329521089,1718412720219,-562.19,0.00027123,3]
[329521090,1718412720248,-528.56,0.00027123,3]
[329521091,1718412720264,-586.94,0.00027123,3]
[329521092,1718412720275,-441.0,0.00027123,3]
[329521093,1718412720286,-500.0,0.00027123,3]
[329521094,1718412720298,-1018.16,0.00027123,3]
[329521095,1718412720311,-500.0,0.00027123,3]
[329521096,1718412720323,-589.32,0.00027123,3]
[329521097,1718412720334,-1325.88313213,0.0002713,2]
[329521098,1718412720353,-152.75262365,0.00027134,2]
[329521099,1718412720378,-153.69627146,0.00027156,2]
[329521100,1718412720390,-152.89017849,0.00027167,2]
[329521101,1718412720407,-150.0,0.00027196,2]
[329521102,1718412720419,-3866.35173217,0.000272,2]
[329521103,1718412720431,-300.0,0.00027203,2]
[329521104,1718412720443,-1000.0,0.00027271,12]
[329521105,1718412720454,-150.0,0.00027291,2]
[329521106,1718412720465,-221.49,0.00027313,2]
[329521107,1718412720479,-417.77,0.00027313,2]
[329521108,1718412720492,-997.7,0.00027315,2]
[329521109,1718412720506,-500.0,0.00027362,2]
[329521110,1718412720529,-588.29,0.0002737,2]
[329521111,1718412720541,-500.0,0.00027371,2]
[329521112,1718412720560,-150.0,0.00027372,2]
[329521113,1718412720570,-500.0,0.00027379,2]
[329521114,1718412720583,-236.7,0.00027381,5]
[329521115,1718412720597,-500.0,0.00027388,2]
[329521116,1718412720608,-224.83,0.00027395,3]
[329521117,1718412720619,-189.88453996,0.00027397,2]
[329521118,1718412720630,-500.0,0.00027397,2]
[329521119,1718412720639,-500.0,0.00027397,2]
[329521120,1718412720650,-500.0,0.00027397,2]
[329521121,1718412720661,-500.0,0.00027397,2]
[329521122,1718412720671,-500.0,0.00027397,2]
[329521123,1718412720686,-500.0,0.00027397,2]
[329521124,1718412720699,-500.0,0.00027397,2]
[329521125,1718412720716,-500.0,0.00027397,2]
[329521126,1718412720727,-423.11981249,0.00027397,2]
[329521127,1718412720737,-2128.50838763,0.00027397,2]
[329521128,1718412720748,-500.0,0.00027397,3]
[329521129,1718412720774,-500.0,0.00027397,2]
[329521130,1718412720786,-150.0,0.00027397,3]
[329521131,1718412720802,-150.0,0.00027397,3]
[329521132,1718412720830,-150.0,0.00027397,3]
[329521133,1718412720861,-150.0,0.00027397,3]
[329521134,1718412720876,-188.62287693,0.00027397,3]
[329521135,1718412720901,-1622.23,0.00027397,3]
[329521136,1718412720913,-500.0,0.00027397,3]
[329521137,1718412720935,-1512.33,0.00027397,3]
[329521138,1718412720950,-500.0,0.00027397,3]
[329521139,1718412720964,-612.35,0.00027397,3]
[329521140,1718412720977,-1630.03,0.00027397,3]
[329521141,1718412720998,-412.82503751,0.00027397,3]
[329521142,1718412721035,-704.79,0.00027397,3]
[329521143,1718412721055,-519.91,0.00027397,3]
[329521144,1718412721077,-562.19,0.00027397,3]
[329521145,1718412721104,-528.56,0.00027397,3]
[329521146,1718412721127,-586.94,0.00027397,3]
[329521147,1718412721167,-500.0,0.00027397,3]
[329521148,1718412721200,-1018.16,0.00027397,3]
[329521149,1718412721227,-277.41120493,0.00027397,3]
[329521150,1718412721244,-589.32,0.00027397,3]
[329521151,1718412721268,-200.0,0.00027397,7]
[329521152,1718412721307,-213.97,0.00027397,2]
[329521153,1718412721336,-150.0,0.00027397,2]
[329521154,1718412721361,-2102.65,0.00027397,10]
[329521155,1718412721379,-154.4352934,0.00027398,2]
[329521156,1718412721396,-257.5585201,0.00027399,2]
[329521157,1718412721414,-1000.0,0.000274,2]
[329521158,1718412721453,-738.10572249,0.000274,2]
[329521159,1718412721482,-366.57,0.000274,2]
[329521160,1718412721522,-366.57,0.000274,2]
[329521161,1718412721534,-366.57,0.000274,2]
[329521162,1718412721553,-366.57,0.000274,2]
[329521163,1718412721589,-366.57,0.000274,2]
[329521164,1718412721601,-366.57,0.000274,2]
[329521165,1718412721626,-366.57,0.000274,2]
[329521166,1718412721644,-366.57,0.000274,2]
[329521167,1718412721674,-2000.0,0.000274,2]
[329521168,1718412721706,-366.57,0.000274,2]
[329521169,1718412721718,-366.57,0.000274,2]
[329521170,1718412721740,-152.89017849,0.00027421,2]
[329521171,1718412721768,-230.57377979,0.00027424,2]
[329521172,1718412721781,-150.0,0.00027442,2]
[329521173,1718412721793,-153.69627146,0.00027445,2]
[329521174,1718412721816,-153.80636169,0.00027446,2]
[329521175,1718412721830,-500.0,0.00027468,12]
[329521176,1718412721843,-309.12,0.0002748,2]
[329521177,1718412721857,-153.68176296,0.00027483,2]
[329521178,1718412721878,-150.0,0.00027488,2]
[329521179,1718412721916,-2227.10606289,0.00027491,3]
[329521180,1718412721928,-183.94188397,0.00027491,2]
[329521181,1718412721939,-200.0,0.000275,10]
[329521182,1718412721950,-1325.88313213,0.00027519,2]
[329521183,1718412721961,-256.31392939,0.00027533,2]
[329521184,1718412721974,-150.0,0.00027537,2]
[329521185,1718412722001,-200.0,0.00027546,15]
[329521186,1718412722011,-500.0,0.00027546,2]
[329521187,1718412722038,-200.0,0.00027546,2]
[329521188,1718412722049,-230.57377979,0.00027551,2]
[329521189,1718412722061,-154.4352934,0.00027557,2]
[329521190,1718412722078,-150.0,0.00027559,2]
[329521191,1718412722120,-150.0,0.00027599,2]
[329521192,1718412722133,-500.0,0.000276,2]
[329521193,1718412722147,-200.0,0.000276,10]
[329521194,1718412722224,-236.7,0.00027619,5]
[329521195,1718412722236,-153.54318877,0.00027629,2]
[329521196,1718412722276,-1000.0,0.0002763,2]
[329521197,1718412722294,-1000.0,0.0002763,2]
[329521198,1718412722319,-1000.0,0.0002763,2]
[329521199,1718412722342,-1000.0,0.0002763,2]
[329521200,1718412722360,-1000.0,0.0002763,2]
[329521201,1718412722401,-1000.0,0.0002763,2]
[329521202,1718412722414,-1000.0,0.0002763,2]
[329521203,1718412722448,-1000.0,0.0002763,2]
[329521204,1718412722459,-1000.0,0.0002763,2]
[329521205,1718412722477,-1000.0,0.0002763,2]
[329521206,1718412722486,-1000.0,0.0002763,2]
[329521207,1718412722499,-1000.0,0.0002763,2]
[329521208,1718412722533,-1000.0,0.0002763,2]
[329521209,1718412722563,-1000.0,0.0002763,2]
[329521210,1718412722613,-1000.0,0.0002763,2]
[329521211,1718412722630,-1000.0,0.0002763,2]
[329521212,1718412722641,-1000.0,0.0002763,2]
[329521213,1718412722651,-1000.0,0.0002763,2]
[329521214,1718412722662,-1000.0,0.0002763,2]
[329521215,1718412722692,-1000.0,0.0002763,2]
[329521216,1718412722724,-1000.0,0.0002763,2]
[329521217,1718412722734,-1000.0,0.0002763,2]
[329521218,1718412722744,-1000.0,0.0002763,2]
[329521219,1718412722768,-1000.0,0.0002763,2]
[329521220,1718412722788,-1000.0,0.0002763,2]
[329521221,1718412722798,-1000.0,0.0002763,2]
[329521222,1718412722810,-1000.0,0.0002763,2]
[329521223,1718412722831,-1000.0,0.0002763,2]
[329521224,1718412722845,-207.3151,0.0002763,2]
[329521225,1718412722856,-500.0,0.0002763,2]
[329521226,1718412722871,-500.0,0.0002763,2]
[329521227,1718412722883,-500.0,0.0002763,2]
[329521228,1718412722894,-500.0,0.0002763,2]
[329521229,1718412722944,-527.5755,0.0002763,2]
[329521230,1718412722956,-5983.08124322,0.0002767,2]
[329521231,1718412722980,-382.94746261,0.0002767,2]
[329521232,1718412722991,-32821.17555182,0.0002767,2]
[329521233,1718412723007,-1834.59140557,0.0002767,2]
[329521234,1718412723028,-7989.56875074,0.0002767,2]
[329521235,1718412723041,-191.16189019,0.0002767,2]
[329521236,1718412723076,-463.62010842,0.00027671,3]
[329521237,1718412723136,-1622.23,0.00027671,3]
[329521238,1718412723150,-1205.15866329,0.00027671,2]
[329521239,1718412723172,-447.40192806,0.00027671,2]
[329521240,1718412723185,-457.73,0.00027671,3]
[329521241,1718412723212,-1512.33,0.00027671,3]
[329521242,1718412723249,-500.0,0.00027671,3]
[329521243,1718412723304,-612.35,0.00027671,3]
[329521244,1718412723356,-1630.03,0.00027671,3]
[329521245,1718412723424,-704.79,0.00027671,3]
[329521246,1718412723465,-519.91,0.00027671,3]
[329521247,1718412723486,-562.19,0.00027671,3]
[329521248,1718412723535,-528.56,0.00027671,3]
[329521249,1718412723549,-586.94,0.00027671,3]
[329521250,1718412723572,-437.52,0.00027671,3]
[329521251,1718412723589,-1018.16,0.00027671,3]
[329521252,1718412723608,-589.32,0.00027671,3]
[329521253,1718412723620,-1325.88313213,0.00027682,2]
[329521254,1718412723656,-152.75262365,0.00027682,2]
[329521255,1718412723669,-1500.0,0.00027686,2]